[Event "Irish Championship 2026"]
[Site "Talbot Hotel Stillorgan, Co.Dublin, IE"]
[Date "2026.08.04"]
[Round "4"]
[White "Joe Ryan"]
[Black "Venkatesan, Kavin"]
[Result "0-1"]
[Board "62"]
[TimeControl "40/5400+30:1800+30"]
[BlackFideId "2512602"]
[WhiteElo "2159"]
[BlackElo "2297"]
[BlackTitle "FM"]
[WhiteClock "0:17:46"]
[BlackClock "0:18:54"]
[Variant "Standard"]
[EndDate "2026.08.04"]
[EndTime "18:14:16"]

1. Nf3 {[%clk 1:28:23]}  d5 {[%clk 1:30:53]} 2. g3 {[%clk 1:28:01]}  Bg4 {[%clk 1:30:58]} 3. Bg2 {[%clk 1:28:06]}  Nd7 {[%clk 1:31:07]}
4. c4 {[%clk 1:26:59]}  e6 {[%clk 1:31:06]} 5. cxd5 {[%clk 1:24:21]}  exd5 {[%clk 1:31:24]} 6. h3 {[%clk 1:24:35]}  Bxf3 {[%clk 1:30:58]}
7. Bxf3 {[%clk 1:24:45]}  Ngf6 {[%clk 1:30:48]} 8. d3 {[%clk 1:23:16]}  c6 {[%clk 1:30:40]} 9. Nc3 {[%clk 1:22:10]}  Bc5 {[%clk 1:29:19]}
10. O-O {[%clk 1:20:52]}  O-O {[%clk 1:28:10]} 11. Qb3 {[%clk 1:17:49]}  Qc7 {[%clk 1:06:15]} 12. Bf4 {[%clk 1:12:30]}  Ne5 {[%clk 0:59:47]}
13. Kg2 {[%clk 0:59:46]}  Bd6 {[%clk 0:57:46]} 14. Bxe5 {[%clk 0:59:55]}  Bxe5 {[%clk 0:58:04]} 15. Rac1 {[%clk 0:59:42]}  Qe7 {[%clk 0:47:52]}
16. Rfd1 {[%clk 0:57:57]}  Rfe8 {[%clk 0:46:26]} 17. d4 {[%clk 0:57:07]}  Bd6 {[%clk 0:46:15]} 18. Qc2 {[%clk 0:57:21]}  Rad8 {[%clk 0:43:44]}
19. e3 {[%clk 0:56:43]}  Bb8 {[%clk 0:37:47]} 20. Rb1 {[%clk 0:55:51]}  Rd6 {[%clk 0:35:36]} 21. b4 {[%clk 0:48:55]}  b5 {[%clk 0:29:52]}
22. a4 {[%clk 0:46:38]}  a6 {[%clk 0:30:08]} 23. axb5 {[%clk 0:45:11]}  axb5 {[%clk 0:27:13]} 24. Ne2 {[%clk 0:39:56]}  Nd7 {[%clk 0:24:49]}
25. Nc3 {[%clk 0:38:23]}  f5 {[%clk 0:21:34]} 26. Be2 {[%clk 0:37:13]}  Rf8 {[%clk 0:20:43]} 27. Bd3 {[%clk 0:37:20]}  Qg5 {[%clk 0:15:56]}
28. Ne2 {[%clk 0:34:55]}  Rh6 {[%clk 0:10:17]} 29. Ra1 {[%clk 0:31:54]}  Qe7 {[%clk 0:05:31]} 30. Ra6 {[%clk 0:30:57]}  Rff6 {[%clk 0:04:51]}
31. Qb3 {[%clk 0:26:36]}  g5 {[%clk 0:04:36]} 32. Nc3 {[%clk 0:24:51]}  f4 {[%clk 0:03:22]} 33. Nxd5 {[%clk 0:17:26]}  f3+ {[%clk 0:02:32]}
34. Kg1 {[%clk 0:17:27]}  cxd5 {[%clk 0:02:50]} 35. Qxd5+ {[%clk 0:17:38]}  Kh8 {[%clk 0:01:48]} 36. Rxf6 {[%clk 0:17:03]}  Rxf6 {[%clk 0:01:26]}
37. Qxg5 {[%clk 0:16:25]}  h6 {[%clk 0:01:08]} 38. Qg4 {[%clk 0:13:16]}  Nf8 {[%clk 0:01:10]} 39. Qh4 {[%clk 0:10:00]}  Kg7 {[%clk 0:01:04]}
40. Rc1 {[%clk 0:09:57]}  Qxb4 {[%clk 0:01:02]} 41. Qg4+ {[%clk 0:06:19]}  Kh8 {[%clk 0:24:53]} 42. Rc5 {[%clk 0:30:36]}  Qe1+ {[%clk 0:21:34]}
43. Bf1 {[%clk 0:30:43]}  Bxg3 {[%clk 0:19:49]} 44. fxg3 {[%clk 0:18:16]}  Rg6 {[%clk 0:20:00]} 45. Qxf3 {[%clk 0:18:00]}  Rxg3+ {[%clk 0:20:24]}
46. Qxg3 {[%clk 0:18:19]}  Qxg3+ {[%clk 0:20:48]} 47. Kh1 {[%clk 0:18:27]}  b4 {[%clk 0:19:31]} 48. Rf5 {[%clk 0:17:27]}  Kg7 {[%clk 0:19:09]}
49. Bc4 {[%clk 0:17:46]}  Qxh3+ {[%clk 0:18:54]} 0-1

[Event "Irish Championship 2026"]
[Site "Talbot Hotel Stillorgan, Co.Dublin, IE"]
[Date "2026.08.04"]
[Round "4"]
[White "Oisin O'Cuilleanain"]
[Black "Woods, Yannick"]
[Result "1-0"]
[Board "63"]
[TimeControl "40/5400+30:1800+30"]
[BlackFideId "2518384"]
[WhiteElo "2128"]
[BlackElo "2118"]
[WhiteClock "0:33:09"]
[BlackClock "0:00:35"]
[Variant "Standard"]
[EndDate "2026.08.04"]
[EndTime "17:01:17"]

1. e4 {[%clk 1:30:56]}  c5 {[%clk 1:30:58]} 2. Nf3 {[%clk 1:31:18]}  d6 {[%clk 1:31:25]} 3. d4 {[%clk 1:31:41]}  cxd4 {[%clk 1:31:51]}
4. Nxd4 {[%clk 1:32:04]}  Nf6 {[%clk 1:32:16]} 5. Nc3 {[%clk 1:32:28]}  a6 {[%clk 1:32:39]} 6. Qd3 {[%clk 1:32:53]}  Nc6 {[%clk 1:18:46]}
7. Bg5 {[%clk 1:32:08]}  e6 {[%clk 1:17:30]} 8. Nxc6 {[%clk 1:30:29]}  bxc6 {[%clk 1:17:51]} 9. O-O-O {[%clk 1:30:47]}  Be7 {[%clk 1:06:19]}
10. Qg3 {[%clk 1:27:15]}  e5 {[%clk 0:49:09]} 11. Be2 {[%clk 1:26:12]}  O-O {[%clk 0:47:22]} 12. f4 {[%clk 1:18:02]}  Ne8 {[%clk 0:46:33]}
13. Bxe7 {[%clk 1:16:29]}  Qxe7 {[%clk 0:47:01]} 14. f5 {[%clk 1:16:49]}  Nf6 {[%clk 0:36:06]} 15. Qh4 {[%clk 1:03:40]}  d5 {[%clk 0:35:30]}
16. g4 {[%clk 1:03:07]}  d4 {[%clk 0:33:43]} 17. Nb1 {[%clk 1:02:38]}  h6 {[%clk 0:22:13]} 18. Rhg1 {[%clk 1:00:31]}  Re8 {[%clk 0:22:42]}
19. g5 {[%clk 0:53:35]}  Nh7 {[%clk 0:22:56]} 20. Qh5 {[%clk 0:52:08]}  Nxg5 {[%clk 0:18:36]} 21. Rg4 {[%clk 0:45:33]}  Qf6 {[%clk 0:12:54]}
22. Bc4 {[%clk 0:42:55]}  Nxe4 {[%clk 0:09:59]} 23. Rxe4 {[%clk 0:42:23]}  Qxf5 {[%clk 0:06:04]} 24. Qe2 {[%clk 0:40:26]}  c5 {[%clk 0:01:41]}
25. Rf1 {[%clk 0:40:05]}  Qg5+ {[%clk 0:01:59]} 26. Nd2 {[%clk 0:40:28]}  Ra7 {[%clk 0:01:51]} 27. h4 {[%clk 0:39:23]}  Qg3 {[%clk 0:01:20]}
28. Qf3 {[%clk 0:32:16]}  Qxf3 {[%clk 0:01:41]} 29. Nxf3 {[%clk 0:32:39]}  Rae7 {[%clk 0:01:29]} 30. Rfe1 {[%clk 0:30:57]}  Be6 {[%clk 0:00:35]}
31. Rxe5 {[%clk 0:33:09]} 1-0

[Event "Irish Championship 2026"]
[Site "Talbot Hotel Stillorgan, Co.Dublin, IE"]
[Date "2026.08.04"]
[Round "4"]
[White "Murray, Benjamin"]
[Black "Jessel, Stephen"]
[Result "0-1"]
[Board "65"]
[TimeControl "40/5400+30:1800+30"]
[WhiteFideId "2512963"]
[BlackFideId "628859"]
[WhiteElo "2080"]
[BlackElo "2364"]
[BlackTitle "FM"]
[WhiteClock "0:01:16"]
[BlackClock "0:00:57"]
[Variant "Standard"]
[EndDate "2026.08.04"]
[EndTime "19:29:39"]

1. e4 {[%clk 1:30:54]}  e6 {[%clk 1:30:48]} 2. d4 {[%clk 1:31:08]}  d5 {[%clk 1:31:08]} 3. e5 {[%clk 1:31:22]}  c5 {[%clk 1:31:22]}
4. c3 {[%clk 1:31:44]}  Nc6 {[%clk 1:31:24]} 5. Nf3 {[%clk 1:32:05]}  Qb6 {[%clk 1:31:31]} 6. a3 {[%clk 1:31:51]}  a5 {[%clk 1:31:15]}
7. Bd3 {[%clk 1:32:02]}  Nh6 {[%clk 1:29:00]} 8. O-O {[%clk 1:31:07]}  cxd4 {[%clk 1:27:50]} 9. cxd4 {[%clk 1:31:29]}  Nf5 {[%clk 1:27:33]}
10. Bxf5 {[%clk 1:31:28]}  exf5 {[%clk 1:27:56]} 11. Nc3 {[%clk 1:31:52]}  Be6 {[%clk 1:28:13]} 12. Na4 {[%clk 1:31:30]}  Qb5 {[%clk 1:28:05]}
13. h3 {[%clk 1:30:29]}  h6 {[%clk 1:24:48]} 14. Ne1 {[%clk 1:30:46]}  Be7 {[%clk 1:17:23]} 15. Be3 {[%clk 1:30:56]}  O-O {[%clk 1:08:05]}
16. Nd3 {[%clk 1:31:09]}  Rfe8 {[%clk 0:50:08]} 17. Rc1 {[%clk 1:23:17]}  Bf8 {[%clk 0:42:39]} 18. Kh1 {[%clk 1:08:21]}  Rac8 {[%clk 0:29:44]}
19. Nac5 {[%clk 1:02:37]}  Qb6 {[%clk 0:07:52]} 20. Rc3 {[%clk 0:55:56]}  Qa7 {[%clk 0:03:35]} 21. Qc2 {[%clk 0:49:59]}  Ne7 {[%clk 0:01:35]}
22. Nf4 {[%clk 0:49:36]}  Rc6 {[%clk 0:01:15]} 23. Rc1 {[%clk 0:46:13]}  Bc8 {[%clk 0:01:12]} 24. Na4 {[%clk 0:42:46]}  Rxc3 {[%clk 0:00:32]}
25. Nxc3 {[%clk 0:43:10]}  Be6 {[%clk 0:00:41]} 26. Nb5 {[%clk 0:43:30]}  Qb6 {[%clk 0:00:52]} 27. Nd6 {[%clk 0:43:30]}  Ra8 {[%clk 0:00:33]}
28. Nh5 {[%clk 0:37:19]}  Nc8 {[%clk 0:00:34]} 29. Nxf5 {[%clk 0:37:02]}  Bxf5 {[%clk 0:00:34]} 30. Qxf5 {[%clk 0:37:20]}  Ne7 {[%clk 0:00:50]}
31. Qg4 {[%clk 0:35:46]}  Kh7 {[%clk 0:00:35]} 32. Qe2 {[%clk 0:35:06]}  Qa6 {[%clk 0:00:34]} 33. Qd2 {[%clk 0:33:29]}  Rd8 {[%clk 0:00:32]}
34. Rc7 {[%clk 0:32:10]}  Qb6 {[%clk 0:00:35]} 35. Rc3 {[%clk 0:28:45]}  Kg8 {[%clk 0:00:51]} 36. Qc2 {[%clk 0:25:24]}  Qa6 {[%clk 0:01:14]}
37. Kg1 {[%clk 0:24:50]}  a4 {[%clk 0:01:01]} 38. Bd2 {[%clk 0:22:09]}  Qg6 {[%clk 0:00:40]} 39. Nf4 {[%clk 0:17:18]}  Qxc2 {[%clk 0:00:47]}
40. Rxc2 {[%clk 0:17:44]}  Nc6 {[%clk 0:00:43]} 41. Be3 {[%clk 0:15:54]}  Be7 {[%clk 0:26:15]} 42. Kf1 {[%clk 0:39:56]}  g5 {[%clk 0:15:54]}
43. Nh5 {[%clk 0:38:21]}  Ra8 {[%clk 0:13:08]} 44. g4 {[%clk 0:38:04]}  Ra5 {[%clk 0:12:44]} 45. Ng3 {[%clk 0:37:42]}  Kh7 {[%clk 0:09:55]}
46. Nf5 {[%clk 0:37:52]}  Bf8 {[%clk 0:09:03]} 47. f4 {[%clk 0:27:20]}  Kg6 {[%clk 0:08:29]} 48. fxg5 {[%clk 0:26:16]}  hxg5 {[%clk 0:07:04]}
49. Bd2 {[%clk 0:21:42]}  Rb5 {[%clk 0:05:59]} 50. Bc3 {[%clk 0:22:06]}  Nd8 {[%clk 0:05:14]} 51. Rf2 {[%clk 0:18:56]}  Ne6 {[%clk 0:03:14]}
52. Ng3 {[%clk 0:16:05]}  Be7 {[%clk 0:02:40]} 53. Nh5 {[%clk 0:13:23]}  Rb6 {[%clk 0:02:05]} 54. Ke2 {[%clk 0:07:08]}  Rc6 {[%clk 0:01:53]}
55. Kd3 {[%clk 0:06:36]}  Rc4 {[%clk 0:01:46]} 56. Rf5 {[%clk 0:05:56]}  b5 {[%clk 0:01:39]} 57. Ke3 {[%clk 0:04:53]}  Bd8 {[%clk 0:01:21]}
58. Nf6 {[%clk 0:03:33]}  Bxf6 {[%clk 0:00:35]} 59. exf6 {[%clk 0:03:53]}  Nf4 {[%clk 0:00:41]} 60. h4 {[%clk 0:02:40]}  Ng2+ {[%clk 0:01:02]}
61. Kf2 {[%clk 0:02:51]}  Nxh4 {[%clk 0:01:12]} 62. Rxd5 {[%clk 0:03:17]}  Rc6 {[%clk 0:01:11]} 63. Rxb5 {[%clk 0:02:06]}  Rxf6+ {[%clk 0:01:26]}
64. Ke2 {[%clk 0:01:20]}  Ng2 {[%clk 0:00:35]} 65. d5 {[%clk 0:01:19]}  Rd6 {[%clk 0:00:43]} 66. Kf3 {[%clk 0:01:12]}  Nf4 {[%clk 0:00:38]}
67. Ke4 {[%clk 0:01:34]}  f6 {[%clk 0:00:41]} 68. Bb4 {[%clk 0:01:33]}  Rd7 {[%clk 0:01:04]} 69. d6 {[%clk 0:01:45]}  Kf7 {[%clk 0:00:59]}
70. Ra5 {[%clk 0:01:53]}  Ng6 {[%clk 0:00:58]} 71. Kd5 {[%clk 0:00:56]}  Ne5 {[%clk 0:01:11]} 72. Rxa4 {[%clk 0:01:07]}  Nxg4 {[%clk 0:01:18]}
73. Bc3 {[%clk 0:01:05]}  f5 {[%clk 0:01:26]} 74. Ra8 {[%clk 0:00:45]}  f4 {[%clk 0:00:48]} 75. Rh8 {[%clk 0:00:51]}  f3 {[%clk 0:01:06]}
76. Kc6 {[%clk 0:00:56]}  f2 {[%clk 0:01:04]} 77. Rh1 {[%clk 0:00:40]}  Ke6 {[%clk 0:01:24]} 78. Bb4 {[%clk 0:00:39]}  Ne5+ {[%clk 0:00:37]}
79. Kb5 {[%clk 0:00:44]}  g4 {[%clk 0:00:56]} 80. Bc5 {[%clk 0:00:46]}  g3 {[%clk 0:01:17]} 81. Rd1 {[%clk 0:00:37]}  Nf3 {[%clk 0:00:43]}
82. Bxf2 {[%clk 0:00:36]}  gxf2 {[%clk 0:01:07]} 83. Rf1 {[%clk 0:00:54]}  Rf7 {[%clk 0:01:09]} 84. Kc6 {[%clk 0:00:46]}  Ne5+ {[%clk 0:01:08]}
85. Kc5 {[%clk 0:00:54]}  Ng4 {[%clk 0:00:38]} 86. Kc6 {[%clk 0:00:37]}  Rd7 {[%clk 0:00:51]} 87. Rd1 {[%clk 0:00:59]}  Ne5+ {[%clk 0:00:39]}
88. Kb5 {[%clk 0:00:54]}  Rxd6 {[%clk 0:00:56]} 89. Rf1 {[%clk 0:01:16]}  Rd2 {[%clk 0:00:57]} 0-1

[Event "Irish Championship 2026"]
[Site "Talbot Hotel Stillorgan, Co.Dublin, IE"]
[Date "2026.08.04"]
[Round "4"]
[White "Collins, Adam"]
[Black "Paibir, Atharva"]
[Result "1-0"]
[Board "66"]
[TimeControl "40/5400+30:1800+30"]
[WhiteFideId "2512300"]
[BlackFideId "2512882"]
[WhiteElo "2340"]
[BlackElo "2067"]
[WhiteTitle "FM"]
[WhiteClock "0:30:29"]
[BlackClock "0:01:21"]
[Variant "Standard"]
[EndDate "2026.08.04"]
[EndTime "17:08:07"]

1. e4 {[%clk 1:30:00]}  c5 {[%clk 1:30:20]} 2. Nf3 {[%clk 1:30:24]}  Nc6 {[%clk 1:30:45]} 3. Bb5 {[%clk 1:30:31]}  g6 {[%clk 1:31:04]}
4. Bxc6 {[%clk 1:30:47]}  dxc6 {[%clk 1:31:10]} 5. d3 {[%clk 1:31:12]}  Bg7 {[%clk 1:31:31]} 6. a4 {[%clk 1:31:37]}  a5 {[%clk 1:31:45]}
7. Nbd2 {[%clk 1:32:03]}  Nf6 {[%clk 1:26:09]} 8. O-O {[%clk 1:32:27]}  O-O {[%clk 1:26:29]} 9. Qe1 {[%clk 1:32:33]}  Ne8 {[%clk 1:21:31]}
10. e5 {[%clk 1:25:21]}  Nc7 {[%clk 1:21:09]} 11. Nc4 {[%clk 1:17:06]}  Ne6 {[%clk 1:20:23]} 12. Bd2 {[%clk 1:12:49]}  b6 {[%clk 1:19:56]}
13. Qe4 {[%clk 1:10:31]}  Qc7 {[%clk 1:18:18]} 14. Rfe1 {[%clk 1:04:44]}  Rd8 {[%clk 1:15:50]} 15. Bc3 {[%clk 1:02:44]}  Bb7 {[%clk 1:15:45]}
16. Qe3 {[%clk 0:55:20]}  Ba6 {[%clk 1:04:26]} 17. b3 {[%clk 0:53:12]}  Rd5 {[%clk 0:58:43]} 18. Qe4 {[%clk 0:50:57]}  Bb7 {[%clk 0:26:04]}
19. h4 {[%clk 0:47:24]}  Nd4 {[%clk 0:16:48]} 20. Rac1 {[%clk 0:38:22]}  b5 {[%clk 0:14:34]} 21. Ne3 {[%clk 0:35:11]}  Rdd8 {[%clk 0:14:41]}
22. h5 {[%clk 0:33:25]}  Nxf3+ {[%clk 0:12:59]} 23. Qxf3 {[%clk 0:31:44]}  Bxe5 {[%clk 0:11:49]} 24. Bxe5 {[%clk 0:32:08]}  Qxe5 {[%clk 0:12:16]}
25. axb5 {[%clk 0:31:22]}  Qf6 {[%clk 0:06:14]} 26. Qxf6 {[%clk 0:30:19]}  exf6 {[%clk 0:06:44]} 27. b6 {[%clk 0:29:26]}  Bc8 {[%clk 0:06:10]}
28. Ra1 {[%clk 0:28:52]}  Be6 {[%clk 0:04:51]} 29. Ra4 {[%clk 0:28:51]}  Rdb8 {[%clk 0:04:25]} 30. Rea1 {[%clk 0:29:06]}  Rxb6 {[%clk 0:03:20]}
31. Rxa5 {[%clk 0:29:29]}  Rxa5 {[%clk 0:01:58]} 32. Rxa5 {[%clk 0:29:57]}  Rb5 {[%clk 0:01:00]} 33. Ra6 {[%clk 0:30:11]}  Bd7 {[%clk 0:01:10]}
34. h6 {[%clk 0:30:25]}  Kf8 {[%clk 0:01:17]} 35. Ra8+ {[%clk 0:30:31]}  Be8 {[%clk 0:01:06]} 36. Nc4 {[%clk 0:29:52]}  Ke7 {[%clk 0:01:26]}
37. f3 {[%clk 0:30:07]}  Rb7 {[%clk 0:01:21]} 38. Rxe8+ {[%clk 0:30:29]} 1-0

[Event "Irish Championship 2026"]
[Site "Talbot Hotel Stillorgan, Co.Dublin, IE"]
[Date "2026.08.04"]
[Round "4"]
[White "Brozynski, Patryk"]
[Black "Andrey A. Ivanov"]
[Result "1/2-1/2"]
[Board "67"]
[TimeControl "40/5400+30:1800+30"]
[WhiteFideId "2512700"]
[WhiteElo "2224"]
[BlackElo "2085"]
[WhiteTitle "CM"]
[WhiteClock "0:23:49"]
[BlackClock "0:25:42"]
[Variant "Standard"]
[EndDate "2026.08.04"]
[EndTime "17:57:28"]

1. e4 {[%clk 1:25:48]}  e6 {[%clk 1:30:37]} 2. d4 {[%clk 1:16:32]}  d5 {[%clk 1:30:48]} 3. Nd2 {[%clk 1:09:44]}  c5 {[%clk 1:30:58]}
4. Ngf3 {[%clk 1:05:13]}  Nf6 {[%clk 1:31:05]} 5. exd5 {[%clk 1:04:16]}  Qxd5 {[%clk 1:31:06]} 6. Bc4 {[%clk 1:04:42]}  Qd6 {[%clk 1:31:03]}
7. dxc5 {[%clk 1:03:21]}  Qxc5 {[%clk 1:28:32]} 8. Qe2 {[%clk 1:03:23]}  Be7 {[%clk 1:27:20]} 9. O-O {[%clk 1:02:13]}  O-O {[%clk 1:25:10]}
10. Nb3 {[%clk 0:52:55]}  Qc7 {[%clk 1:21:44]} 11. Nbd4 {[%clk 0:49:02]}  a6 {[%clk 1:19:54]} 12. Bg5 {[%clk 0:42:14]}  Nc6 {[%clk 1:14:06]}
13. Nxc6 {[%clk 0:38:04]}  Qxc6 {[%clk 1:13:51]} 14. Bd3 {[%clk 0:38:16]}  Bd7 {[%clk 1:05:36]} 15. Ne5 {[%clk 0:36:40]}  Qc7 {[%clk 0:34:49]}
16. Nxd7 {[%clk 0:18:34]}  Qxd7 {[%clk 0:33:05]} 17. Rad1 {[%clk 0:17:30]}  Qc6 {[%clk 0:33:45]} 18. c3 {[%clk 0:15:54]}  Rad8 {[%clk 0:28:43]}
19. Rfe1 {[%clk 0:12:38]}  h6 {[%clk 0:25:16]} 20. Bc1 {[%clk 0:11:09]}  Rd5 {[%clk 0:24:29]} 21. Bc2 {[%clk 0:10:42]}  Rfd8 {[%clk 0:21:24]}
22. Rxd5 {[%clk 0:10:48]}  Qxd5 {[%clk 0:19:50]} 23. b3 {[%clk 0:09:42]}  Qa5 {[%clk 0:18:37]} 24. Bb2 {[%clk 0:06:53]}  Kf8 {[%clk 0:17:16]}
25. a4 {[%clk 0:05:55]}  Qg5 {[%clk 0:14:45]} 26. Rd1 {[%clk 0:04:18]}  Rxd1+ {[%clk 0:14:13]} 27. Qxd1 {[%clk 0:04:33]}  Qe5 {[%clk 0:14:06]}
28. Ba1 {[%clk 0:03:08]}  Qf4 {[%clk 0:06:15]} 29. g3 {[%clk 0:03:21]}  Qg4 {[%clk 0:04:47]} 30. Qxg4 {[%clk 0:03:01]}  Nxg4 {[%clk 0:05:16]}
31. Be4 {[%clk 0:03:06]}  b6 {[%clk 0:05:32]} 32. Bf3 {[%clk 0:02:04]}  Ne5 {[%clk 0:04:18]} 33. Be2 {[%clk 0:02:32]}  a5 {[%clk 0:04:43]}
34. Kf1 {[%clk 0:01:38]}  Nd7 {[%clk 0:04:52]} 35. Bd1 {[%clk 0:01:21]}  Bf6 {[%clk 0:05:13]} 36. Ke2 {[%clk 0:01:43]}  Nc5 {[%clk 0:05:25]}
37. Bc2 {[%clk 0:02:01]}  Ke7 {[%clk 0:05:02]} 38. Kd2 {[%clk 0:02:09]}  h5 {[%clk 0:05:03]} 39. Bb2 {[%clk 0:01:59]}  h4 {[%clk 0:04:28]}
40. f3 {[%clk 0:01:18]}  hxg3 {[%clk 0:03:32]} 41. hxg3 {[%clk 0:00:55]}  Be5 {[%clk 0:30:01]} 42. f4 {[%clk 0:29:14]}  Bd6 {[%clk 0:29:54]}
43. b4 {[%clk 0:23:49]}  Nd7 {[%clk 0:25:42]} 44. bxa5 {[%clk 0:23:33]} 1/2-1/2

[Event "Irish Championship 2026"]
[Site "Talbot Hotel Stillorgan, Co.Dublin, IE"]
[Date "2026.08.04"]
[Round "4"]
[White "Arun, Nitish"]
[Black "Stokes, Stephen"]
[Result "1-0"]
[Board "68"]
[TimeControl "40/5400+30:1800+30"]
[WhiteFideId "2524201"]
[BlackFideId "2503530"]
[WhiteElo "2175"]
[BlackElo "1885"]
[WhiteTitle "CM"]
[WhiteClock "0:06:36"]
[BlackClock "0:29:04"]
[Variant "Standard"]
[EndDate "2026.08.04"]
[EndTime "17:22:50"]

1. d4 {[%clk 1:30:56]}  d5 {[%clk 1:27:29]} 2. c4 {[%clk 1:31:09]}  e6 {[%clk 1:27:36]} 3. Nc3 {[%clk 1:31:23]}  Nf6 {[%clk 1:27:46]}
4. Nf3 {[%clk 1:31:43]}  Be7 {[%clk 1:27:54]} 5. Bg5 {[%clk 1:31:32]}  h6 {[%clk 1:27:52]} 6. Bxf6 {[%clk 1:30:21]}  Bxf6 {[%clk 1:28:08]}
7. e3 {[%clk 1:30:42]}  O-O {[%clk 1:27:35]} 8. Rc1 {[%clk 1:30:38]}  c6 {[%clk 1:27:15]} 9. Bd3 {[%clk 1:30:37]}  Nd7 {[%clk 1:24:39]}
10. O-O {[%clk 1:30:00]}  dxc4 {[%clk 1:24:07]} 11. Bxc4 {[%clk 1:30:01]}  e5 {[%clk 1:23:42]} 12. Ne4 {[%clk 1:27:25]}  exd4 {[%clk 1:22:20]}
13. Nxf6+ {[%clk 1:24:54]}  Nxf6 {[%clk 1:22:21]} 14. Qxd4 {[%clk 1:21:50]}  Bg4 {[%clk 1:21:09]} 15. Qxd8 {[%clk 1:19:03]}  Raxd8 {[%clk 1:21:06]}
16. Ne5 {[%clk 1:16:21]}  Rd2 {[%clk 1:15:43]} 17. f3 {[%clk 1:12:05]}  Be6 {[%clk 1:08:52]} 18. Bxe6 {[%clk 1:11:56]}  fxe6 {[%clk 1:09:12]}
19. Nc4 {[%clk 1:10:04]}  Rd7 {[%clk 1:03:07]} 20. Rfd1 {[%clk 1:06:18]}  Rfd8 {[%clk 1:02:53]} 21. Rxd7 {[%clk 1:06:14]}  Rxd7 {[%clk 1:03:07]}
22. e4 {[%clk 1:04:47]}  Kf8 {[%clk 0:57:36]} 23. Rc2 {[%clk 1:01:20]}  Ke7 {[%clk 0:55:42]} 24. Kf2 {[%clk 0:59:45]}  Ne8 {[%clk 0:50:48]}
25. Ke2 {[%clk 0:55:12]}  Nd6 {[%clk 0:49:35]} 26. Ne5 {[%clk 0:49:36]}  Rd8 {[%clk 0:48:42]} 27. Ke3 {[%clk 0:42:48]}  Nf7 {[%clk 0:48:16]}
28. Nd3 {[%clk 0:43:05]}  b6 {[%clk 0:44:02]} 29. Nb4 {[%clk 0:40:44]}  Kd7 {[%clk 0:40:32]} 30. Nxc6 {[%clk 0:39:06]}  Rc8 {[%clk 0:40:22]}
31. Nb4 {[%clk 0:39:30]}  Rxc2 {[%clk 0:38:56]} 32. Nxc2 {[%clk 0:39:55]}  e5 {[%clk 0:39:21]} 33. b3 {[%clk 0:38:29]}  Kd6 {[%clk 0:39:24]}
34. Kd3 {[%clk 0:37:45]}  Kc5 {[%clk 0:38:43]} 35. a4 {[%clk 0:36:11]}  b5 {[%clk 0:37:03]} 36. b4+ {[%clk 0:31:52]}  Kc6 {[%clk 0:37:05]}
37. a5 {[%clk 0:31:59]}  Nd8 {[%clk 0:36:06]} 38. Ne3 {[%clk 0:29:08]}  Ne6 {[%clk 0:35:06]} 39. Nd5 {[%clk 0:28:45]}  Kd6 {[%clk 0:34:40]}
40. Ke3 {[%clk 0:25:17]}  Nd8 {[%clk 0:33:42]} 41. g3 {[%clk 0:24:24]}  Nc6 {[%clk 0:33:26]} 42. f4 {[%clk 0:16:36]}  exf4+ {[%clk 0:31:56]}
43. Kxf4 {[%clk 0:13:41]}  Nd4 {[%clk 0:30:59]} 44. h4 {[%clk 0:07:41]}  Ke6 {[%clk 0:30:31]} 45. Nc7+ {[%clk 0:05:53]}  Kf6 {[%clk 0:28:16]}
46. e5+ {[%clk 0:04:48]}  Ke7 {[%clk 0:27:23]} 47. Ke4 {[%clk 0:03:36]}  Nc6 {[%clk 0:27:18]} 48. Nxb5 {[%clk 0:03:49]}  a6 {[%clk 0:27:33]}
49. Nc7 {[%clk 0:04:06]}  Nxb4 {[%clk 0:27:09]} 50. Nd5+ {[%clk 0:04:11]}  Nxd5 {[%clk 0:27:33]} 51. Kxd5 {[%clk 0:04:38]}  Kd7 {[%clk 0:27:55]}
52. e6+ {[%clk 0:04:58]}  Ke7 {[%clk 0:28:19]} 53. h5 {[%clk 0:05:21]}  Ke8 {[%clk 0:28:25]} 54. Kd6 {[%clk 0:05:45]}  Kd8 {[%clk 0:28:49]}
55. e7+ {[%clk 0:06:10]}  Ke8 {[%clk 0:29:04]} 56. Ke6 {[%clk 0:06:36]} 1-0